[Event "Titled Tuesday Blitz August 1 Late 2023"]
[White "Krishna C R G"]
[Black "Droin, Augustin"]
[WhiteFideId "5018625"]
[BlackFideId "45105987"]
[WhiteElo "2724"]
[BlackElo "2506"]
[Result "0-1"]
[Round "2"]
[TimeControl "180+1"]
[Date "2023.08.01"]
[WhiteClock "0:00:08"]
[BlackClock "0:00:37"]
[Board "51"]

1. d4 {[%clk 0:03:00]}  Nf6 {[%clk 0:02:59]} 2. Nf3 {[%clk 0:03:01]}  e6 {[%clk 0:02:58]} 3. e3 {[%clk 0:01:40]}  d5 {[%clk 0:02:57]} 4. Bd3 {[%clk 0:01:39]}  c5 {[%clk 0:02:57]} 5. O-O {[%clk 0:01:31]}  Nc6 {[%clk 0:02:56]} 6. b3 {[%clk 0:01:28]}  Bd6 {[%clk 0:02:56]} 7. Bb2 {[%clk 0:01:27]}  O-O {[%clk 0:02:55]} 8. c4 {[%clk 0:01:26]}  b6 {[%clk 0:02:53]} 9. cxd5 {[%clk 0:01:25]}  exd5 {[%clk 0:02:54]} 10. Nc3 {[%clk 0:01:21]}  Bb7 {[%clk 0:02:53]} 11. Rc1 {[%clk 0:01:19]}  Rc8 {[%clk 0:02:53]} 12. Bb1 {[%clk 0:01:14]}  Bb8 {[%clk 0:02:53]} 13. Re1 {[%clk 0:01:14]}  Re8 {[%clk 0:02:49]} 14. dxc5 {[%clk 0:01:14]}  bxc5 {[%clk 0:02:49]} 15. Na4 {[%clk 0:01:14]}  c4 {[%clk 0:02:44]} 16. bxc4 {[%clk 0:01:13]}  dxc4 {[%clk 0:02:42]} 17. Qxd8 {[%clk 0:01:06]}  Rexd8 {[%clk 0:02:37]} 18. Rxc4 {[%clk 0:01:05]}  Na5 {[%clk 0:02:37]} 19. Rxc8 {[%clk 0:01:04]}  Rxc8 {[%clk 0:02:38]} 20. Rc1 {[%clk 0:01:01]}  Nc4 {[%clk 0:02:36]} 21. Bd4 {[%clk 0:00:58]}  Bd5 {[%clk 0:02:14]} 22. Nd2 {[%clk 0:00:55]}  Ng4 {[%clk 0:02:08]} 23. g3 {[%clk 0:00:45]}  Nge5 {[%clk 0:01:56]} 24. Bxe5 {[%clk 0:00:38]}  Bxe5 {[%clk 0:01:57]} 25. Be4 {[%clk 0:00:30]}  Be6 {[%clk 0:01:49]} 26. Nxc4 {[%clk 0:00:21]}  Rxc4 {[%clk 0:01:50]} 27. Rxc4 {[%clk 0:00:18]}  Bxc4 {[%clk 0:01:51]} 28. Bb1 {[%clk 0:00:18]}  Kf8 {[%clk 0:01:48]} 29. Nc5 {[%clk 0:00:18]}  Ke7 {[%clk 0:01:47]} 30. Nb3 {[%clk 0:00:18]}  Bc3 {[%clk 0:01:46]} 31. Kg2 {[%clk 0:00:17]}  g6 {[%clk 0:01:45]} 32. Kf3 {[%clk 0:00:17]}  Kd6 {[%clk 0:01:46]} 33. Nd4 {[%clk 0:00:17]}  Kc5 {[%clk 0:01:45]} 34. Ne2 {[%clk 0:00:16]}  Be5 {[%clk 0:01:43]} 35. e4 {[%clk 0:00:16]}  Kb4 {[%clk 0:01:43]} 36. Ke3 {[%clk 0:00:16]}  Ka3 {[%clk 0:01:43]} 37. f4 {[%clk 0:00:17]}  Bb2 {[%clk 0:01:44]} 38. Nd4 {[%clk 0:00:16]}  Bxd4+ {[%clk 0:01:12]} 39. Kxd4 {[%clk 0:00:16]}  Bxa2 {[%clk 0:01:13]} 40. Bxa2 {[%clk 0:00:10]}  Kxa2 {[%clk 0:01:14]} 41. g4 {[%clk 0:00:06]}  a5 {[%clk 0:01:13]} 42. f5 {[%clk 0:00:07]}  Kb3 {[%clk 0:00:59]} 43. e5 {[%clk 0:00:07]}  a4 {[%clk 0:00:54]} 44. e6 {[%clk 0:00:06]}  fxe6 {[%clk 0:00:54]} 45. fxe6 {[%clk 0:00:06]}  a3 {[%clk 0:00:55]} 46. e7 {[%clk 0:00:07]}  a2 {[%clk 0:00:56]} 47. e8=Q {[%clk 0:00:07]}  a1=Q+ {[%clk 0:00:56]} 48. Kd5 {[%clk 0:00:08]}  Qd1+ {[%clk 0:00:57]} 49. Kc5 {[%clk 0:00:08]}  Qg1+ {[%clk 0:00:53]} 50. Kd5 {[%clk 0:00:08]}  Qg2+ {[%clk 0:00:52]} 51. Qe4 {[%clk 0:00:08]}  Qxh2 {[%clk 0:00:49]} 52. Qd3+ {[%clk 0:00:08]}  Kb2 {[%clk 0:00:50]} 53. Qd4+ {[%clk 0:00:08]}  Kc2 {[%clk 0:00:50]} 54. Qc4+ {[%clk 0:00:08]}  Kd1 {[%clk 0:00:41]} 55. Qd3+ {[%clk 0:00:08]}  Qd2 {[%clk 0:00:41]} 56. Ke4 {[%clk 0:00:07]}  Qxd3+ {[%clk 0:00:40]} 57. Kxd3 {[%clk 0:00:08]}  Ke1 {[%clk 0:00:41]} 58. Ke3 {[%clk 0:00:08]}  g5 {[%clk 0:00:35]} 59. Ke4 {[%clk 0:00:08]}  Kf2 {[%clk 0:00:35]} 60. Kf5 {[%clk 0:00:09]}  h6 {[%clk 0:00:36]} 61. Kg6 {[%clk 0:00:09]}  Kg3 {[%clk 0:00:36]} 62. Kh5 {[%clk 0:00:08]}  Kh3 {[%clk 0:00:37]} 0-1


[Site "https://www.chess.com"]

[Event "Titled Tuesday Blitz August 1 Late 2023"]
[White "Kozionov, Kirill"]
[Black "Mordechai, Hanan"]
[WhiteFideId "24101729"]
[BlackFideId "2804166"]
[WhiteElo "2710"]
[BlackElo "2501"]
[Result "0-1"]
[Round "2"]
[TimeControl "180+1"]
[Date "2023.08.01"]
[WhiteClock "0:00:00"]
[BlackClock "0:00:08"]
[Board "54"]

1. e4 {[%clk 0:03:00]}  c5 {[%clk 0:02:56]} 2. d4 {[%clk 0:03:00]}  cxd4 {[%clk 0:02:55]} 3. Qxd4 {[%clk 0:03:01]}  Nc6 {[%clk 0:02:55]} 4. Qd3 {[%clk 0:03:01]}  d6 {[%clk 0:02:52]} 5. Nc3 {[%clk 0:03:00]}  Nf6 {[%clk 0:02:52]} 6. Nf3 {[%clk 0:03:00]}  g6 {[%clk 0:02:50]} 7. Be2 {[%clk 0:02:55]}  Bg7 {[%clk 0:02:49]} 8. O-O {[%clk 0:02:54]}  O-O {[%clk 0:02:50]} 9. Bg5 {[%clk 0:02:53]}  Be6 {[%clk 0:02:46]} 10. Rad1 {[%clk 0:02:33]}  Qa5 {[%clk 0:02:43]} 11. a3 {[%clk 0:02:23]}  Ne5 {[%clk 0:02:35]} 12. Nxe5 {[%clk 0:02:21]}  Qxe5 {[%clk 0:02:36]} 13. Be3 {[%clk 0:02:15]}  Ng4 {[%clk 0:02:34]} 14. Bxg4 {[%clk 0:02:12]}  Bxg4 {[%clk 0:02:35]} 15. f3 {[%clk 0:02:13]}  Be6 {[%clk 0:02:33]} 16. Bd4 {[%clk 0:02:12]}  Qxd4+ {[%clk 0:02:21]} 17. Qxd4 {[%clk 0:02:13]}  Bxd4+ {[%clk 0:02:21]} 18. Rxd4 {[%clk 0:02:13]}  Rac8 {[%clk 0:02:22]} 19. Rfd1 {[%clk 0:02:11]}  Rc5 {[%clk 0:02:20]} 20. R1d2 {[%clk 0:02:03]}  Rfc8 {[%clk 0:02:20]} 21. Kf2 {[%clk 0:02:03]}  Kg7 {[%clk 0:02:10]} 22. Ke1 {[%clk 0:02:00]}  h5 {[%clk 0:01:58]} 23. h4 {[%clk 0:01:59]}  Kf6 {[%clk 0:01:43]} 24. Kf2 {[%clk 0:01:15]}  a6 {[%clk 0:01:39]} 25. Ke3 {[%clk 0:01:07]}  b5 {[%clk 0:01:39]} 26. Kf2 {[%clk 0:00:56]}  Ke5 {[%clk 0:01:26]} 27. Ke3 {[%clk 0:00:50]}  Kf6 {[%clk 0:01:26]} 28. Kf2 {[%clk 0:00:44]}  Bc4 {[%clk 0:01:01]} 29. Nd1 {[%clk 0:00:40]}  a5 {[%clk 0:00:50]} 30. Ne3 {[%clk 0:00:35]}  Be6 {[%clk 0:00:48]} 31. c3 {[%clk 0:00:32]}  Rb8 {[%clk 0:00:46]} 32. Kg3 {[%clk 0:00:28]}  Rc7 {[%clk 0:00:40]} 33. Kf2 {[%clk 0:00:22]}  Rcb7 {[%clk 0:00:39]} 34. Nd5+ {[%clk 0:00:13]}  Bxd5 {[%clk 0:00:39]} 35. Rxd5 {[%clk 0:00:14]}  Rc7 {[%clk 0:00:36]} 36. Ke3 {[%clk 0:00:13]}  b4 {[%clk 0:00:33]} 37. cxb4 {[%clk 0:00:12]}  axb4 {[%clk 0:00:34]} 38. a4 {[%clk 0:00:10]}  b3 {[%clk 0:00:31]} 39. a5 {[%clk 0:00:06]}  Rc1 {[%clk 0:00:28]} 40. Kf2 {[%clk 0:00:04]}  Ra1 {[%clk 0:00:27]} 41. Re2 {[%clk 0:00:02]}  Ra2 {[%clk 0:00:26]} 42. e5+ {[%clk 0:00:02]}  dxe5 {[%clk 0:00:25]} 43. Rdxe5 {[%clk 0:00:02]}  e6 {[%clk 0:00:26]} 44. Rc5 {[%clk 0:00:01]}  Ke7 {[%clk 0:00:16]} 45. Ke3 {[%clk 0:00:01]}  Kd6 {[%clk 0:00:16]} 46. Rc3 {[%clk 0:00:01]}  Rxa5 {[%clk 0:00:16]} 47. Rd2+ {[%clk 0:00:02]}  Rd5 {[%clk 0:00:14]} 48. Rd4 {[%clk 0:00:01]}  Rb5 {[%clk 0:00:10]} 49. Ra4 {[%clk 0:00:01]}  Re5+ {[%clk 0:00:10]} 50. Kf2 {[%clk 0:00:01]}  Red5 {[%clk 0:00:10]} 51. Ke3 {[%clk 0:00:01]}  Rd1 {[%clk 0:00:10]} 52. Ra3 {[%clk 0:00:01]}  Re5+ {[%clk 0:00:06]} 53. Kf2 {[%clk 0:00:01]}  Rd2+ {[%clk 0:00:06]} 54. Kg3 {[%clk 0:00:02]}  Ree2 {[%clk 0:00:06]} 55. Rcxb3 {[%clk 0:00:01]}  Rxg2+ {[%clk 0:00:07]} 56. Kf4 {[%clk 0:00:01]}  e5+ {[%clk 0:00:05]} 57. Ke4 {[%clk 0:00:01]}  Rge2+ {[%clk 0:00:05]} 58. Re3 {[%clk 0:00:01]}  Rxe3+ {[%clk 0:00:06]} 59. Kxe3 {[%clk 0:00:01]}  Rxb2 {[%clk 0:00:06]} 60. Ra6+ {[%clk 0:00:01]}  Ke7 {[%clk 0:00:06]} 61. Ke4 {[%clk 0:00:02]}  Rb5 {[%clk 0:00:06]} 62. Ra7+ {[%clk 0:00:01]}  Kf6 {[%clk 0:00:06]} 63. Ra6+ {[%clk 0:00:01]}  Kg7 {[%clk 0:00:06]} 64. Ra7 {[%clk 0:00:01]}  Rb4+ {[%clk 0:00:07]} 65. Kxe5 {[%clk 0:00:01]}  Rxh4 {[%clk 0:00:08]} 66. f4 {[%clk 0:00:00]}  Rh1 {[%clk 0:00:08]} 0-1


[Site "https://www.chess.com"]

[Event "Titled Tuesday Blitz August 1 Late 2023"]
[White "Bochnicka, Vladimir"]
[Black "Klukin, Kirill"]
[WhiteFideId "14943450"]
[BlackFideId "24199273"]
[WhiteElo "2488"]
[BlackElo "2697"]
[Result "1/2-1/2"]
[Round "2"]
[TimeControl "180+1"]
[Date "2023.08.01"]
[WhiteClock "0:00:05"]
[BlackClock "0:00:08"]
[Board "57"]

1. e4 {[%clk 0:03:00]}  c5 {[%clk 0:02:59]} 2. Nf3 {[%clk 0:03:01]}  g6 {[%clk 0:02:59]} 3. d4 {[%clk 0:03:00]}  cxd4 {[%clk 0:03:00]} 4. Nxd4 {[%clk 0:03:01]}  Bg7 {[%clk 0:03:00]} 5. c4 {[%clk 0:03:01]}  Nc6 {[%clk 0:03:00]} 6. Be3 {[%clk 0:03:01]}  Nf6 {[%clk 0:03:00]} 7. Nc3 {[%clk 0:03:02]}  O-O {[%clk 0:03:01]} 8. Be2 {[%clk 0:03:00]}  d6 {[%clk 0:03:01]} 9. O-O {[%clk 0:03:00]}  Bd7 {[%clk 0:03:02]} 10. h3 {[%clk 0:02:58]}  Nxd4 {[%clk 0:03:02]} 11. Bxd4 {[%clk 0:02:59]}  Bc6 {[%clk 0:03:03]} 12. Qc2 {[%clk 0:02:59]}  a5 {[%clk 0:02:59]} 13. Rad1 {[%clk 0:02:59]}  Nd7 {[%clk 0:02:58]} 14. Bxg7 {[%clk 0:02:59]}  Kxg7 {[%clk 0:02:59]} 15. Bg4 {[%clk 0:02:59]}  Qc7 {[%clk 0:02:03]} 16. Bxd7 {[%clk 0:02:46]}  Bxd7 {[%clk 0:02:03]} 17. Nd5 {[%clk 0:02:36]}  Qd8 {[%clk 0:02:03]} 18. Qc3+ {[%clk 0:02:06]}  f6 {[%clk 0:01:58]} 19. c5 {[%clk 0:01:28]}  Rc8 {[%clk 0:00:57]} 20. cxd6 {[%clk 0:01:29]}  Rxc3 {[%clk 0:00:51]} 21. dxe7 {[%clk 0:01:29]}  Qe8 {[%clk 0:00:43]} 22. exf8=Q+ {[%clk 0:01:29]}  Qxf8 {[%clk 0:00:44]} 23. Nxc3 {[%clk 0:01:22]}  Bc6 {[%clk 0:00:44]} 24. Rd4 {[%clk 0:01:19]}  Qc5 {[%clk 0:00:40]} 25. Rfd1 {[%clk 0:01:18]}  b5 {[%clk 0:00:40]} 26. Rd8 {[%clk 0:01:09]}  b4 {[%clk 0:00:37]} 27. Nd5 {[%clk 0:01:02]}  Qc2 {[%clk 0:00:35]} 28. Ne7 {[%clk 0:00:35]}  Qxe4 {[%clk 0:00:15]} 29. Nxc6 {[%clk 0:00:34]}  Qxc6 {[%clk 0:00:16]} 30. R1d7+ {[%clk 0:00:33]}  Kh6 {[%clk 0:00:16]} 31. Rd2 {[%clk 0:00:29]}  Qc1+ {[%clk 0:00:13]} 32. Kh2 {[%clk 0:00:29]}  Qc7+ {[%clk 0:00:14]} 33. g3 {[%clk 0:00:29]}  Qc5 {[%clk 0:00:14]} 34. Kg2 {[%clk 0:00:28]}  Qc6+ {[%clk 0:00:14]} 35. Kh2 {[%clk 0:00:29]}  Qc5 {[%clk 0:00:14]} 36. h4 {[%clk 0:00:29]}  Qf5 {[%clk 0:00:11]} 37. R8d5 {[%clk 0:00:29]}  Qe4 {[%clk 0:00:11]} 38. Rxa5 {[%clk 0:00:25]}  Qe1 {[%clk 0:00:04]} 39. Rad5 {[%clk 0:00:24]}  g5 {[%clk 0:00:04]} 40. hxg5+ {[%clk 0:00:23]}  fxg5 {[%clk 0:00:05]} 41. Rd6+ {[%clk 0:00:22]}  Kh5 {[%clk 0:00:06]} 42. R6d4 {[%clk 0:00:19]}  Qc1 {[%clk 0:00:05]} 43. Kg2 {[%clk 0:00:18]}  Qc6+ {[%clk 0:00:03]} 44. Rd5 {[%clk 0:00:18]}  Qc4 {[%clk 0:00:02]} 45. R2d4 {[%clk 0:00:17]}  Qc2 {[%clk 0:00:03]} 46. Rh4+ {[%clk 0:00:12]}  Kg6 {[%clk 0:00:02]} 47. Rhd4 {[%clk 0:00:12]}  b3 {[%clk 0:00:02]} 48. axb3 {[%clk 0:00:12]}  Qxb3 {[%clk 0:00:03]} 49. Rd2 {[%clk 0:00:12]}  Kh5 {[%clk 0:00:03]} 50. f4 {[%clk 0:00:10]}  Qb7 {[%clk 0:00:03]} 51. fxg5 {[%clk 0:00:09]}  Kg4 {[%clk 0:00:03]} 52. Rd4+ {[%clk 0:00:09]}  Kh5 {[%clk 0:00:03]} 53. Kh3 {[%clk 0:00:08]}  Qxb2 {[%clk 0:00:03]} 54. Rh4+ {[%clk 0:00:08]}  Kg6 {[%clk 0:00:04]} 55. Rh6+ {[%clk 0:00:08]}  Kf7 {[%clk 0:00:04]} 56. Rd7+ {[%clk 0:00:08]}  Ke8 {[%clk 0:00:05]} 57. Rdxh7 {[%clk 0:00:07]}  Qe5 {[%clk 0:00:04]} 58. Rh8+ {[%clk 0:00:06]}  Kf7 {[%clk 0:00:05]} 59. g6+ {[%clk 0:00:06]}  Kg7 {[%clk 0:00:04]} 60. R8h7+ {[%clk 0:00:07]}  Kg8 {[%clk 0:00:05]} 61. Rf7 {[%clk 0:00:04]}  Qe6+ {[%clk 0:00:05]} 62. Kh4 {[%clk 0:00:04]}  Qe4+ {[%clk 0:00:05]} 63. g4 {[%clk 0:00:04]}  Qe1+ {[%clk 0:00:05]} 64. Kg5 {[%clk 0:00:04]}  Qe5+ {[%clk 0:00:05]} 65. Rf5 {[%clk 0:00:04]}  Qe3+ {[%clk 0:00:06]} 66. Kh5 {[%clk 0:00:04]}  Qh3+ {[%clk 0:00:06]} 67. Kg5 {[%clk 0:00:04]}  Qe3+ {[%clk 0:00:07]} 68. Rf4 {[%clk 0:00:05]}  Qe5+ {[%clk 0:00:07]} 69. Rf5 {[%clk 0:00:05]}  Qe3+ {[%clk 0:00:08]} 1/2-1/2


[Site "https://www.chess.com"]

[Event "Titled Tuesday Blitz August 1 Late 2023"]
[White "Kuzmicz, Krystian"]
[Black "Jimenez Jimenez, Leandro"]
[WhiteFideId "1119125"]
[BlackFideId "6415253"]
[WhiteElo "2695"]
[BlackElo "2485"]
[Result "0-1"]
[Round "2"]
[TimeControl "180+1"]
[Date "2023.08.01"]
[WhiteClock "0:00:05"]
[BlackClock "0:00:05"]
[Board "58"]

1. e4 {[%clk 0:03:00]}  e5 {[%clk 0:02:59]} 2. Bc4 {[%clk 0:02:58]}  Nf6 {[%clk 0:02:56]} 3. Qf3 {[%clk 0:02:57]}  Nc6 {[%clk 0:02:53]} 4. Ne2 {[%clk 0:02:57]}  Bc5 {[%clk 0:02:36]} 5. Nbc3 {[%clk 0:02:56]}  O-O {[%clk 0:02:29]} 6. d3 {[%clk 0:02:56]}  Nd4 {[%clk 0:02:27]} 7. Nxd4 {[%clk 0:02:53]}  exd4 {[%clk 0:02:23]} 8. Ne2 {[%clk 0:02:52]}  d5 {[%clk 0:02:20]} 9. exd5 {[%clk 0:01:49]}  Bg4 {[%clk 0:02:17]} 10. Qf4 {[%clk 0:01:48]}  Bxe2 {[%clk 0:01:59]} 11. Kxe2 {[%clk 0:01:48]}  Re8+ {[%clk 0:01:59]} 12. Kd1 {[%clk 0:01:47]}  Nxd5 {[%clk 0:01:47]} 13. Qg5 {[%clk 0:01:46]}  Qxg5 {[%clk 0:01:13]} 14. Bxg5 {[%clk 0:01:47]}  Nb6 {[%clk 0:01:12]} 15. Bb3 {[%clk 0:01:46]}  a5 {[%clk 0:01:12]} 16. a3 {[%clk 0:01:44]}  Bd6 {[%clk 0:01:02]} 17. Re1 {[%clk 0:01:39]}  h6 {[%clk 0:01:02]} 18. Bd2 {[%clk 0:01:35]}  a4 {[%clk 0:00:59]} 19. Ba2 {[%clk 0:01:35]}  Nd7 {[%clk 0:00:56]} 20. Re2 {[%clk 0:01:25]}  Nf6 {[%clk 0:00:54]} 21. h3 {[%clk 0:01:23]}  c6 {[%clk 0:00:48]} 22. Ke1 {[%clk 0:01:22]}  Nh5 {[%clk 0:00:46]} 23. g3 {[%clk 0:01:21]}  Nf6 {[%clk 0:00:19]} 24. Kf1 {[%clk 0:01:19]}  Kf8 {[%clk 0:00:20]} 25. Rb1 {[%clk 0:01:18]}  Rxe2 {[%clk 0:00:19]} 26. Kxe2 {[%clk 0:01:18]}  Ke7 {[%clk 0:00:19]} 27. g4 {[%clk 0:01:12]}  h5 {[%clk 0:00:14]} 28. Kf3 {[%clk 0:01:10]}  hxg4+ {[%clk 0:00:14]} 29. hxg4 {[%clk 0:01:10]}  Rh8 {[%clk 0:00:15]} 30. Re1+ {[%clk 0:01:08]}  Kf8 {[%clk 0:00:15]} 31. g5 {[%clk 0:00:52]}  Rh3+ {[%clk 0:00:14]} 32. Ke2 {[%clk 0:00:50]}  Ng4 {[%clk 0:00:13]} 33. Rg1 {[%clk 0:00:49]}  Ne5 {[%clk 0:00:10]} 34. Rg2 {[%clk 0:00:40]}  Nf3 {[%clk 0:00:10]} 35. Ba5 {[%clk 0:00:33]}  g6 {[%clk 0:00:06]} 36. Bd8 {[%clk 0:00:31]}  Be7 {[%clk 0:00:05]} 37. Bxe7+ {[%clk 0:00:30]}  Kxe7 {[%clk 0:00:06]} 38. b3 {[%clk 0:00:29]}  axb3 {[%clk 0:00:06]} 39. Bxb3 {[%clk 0:00:30]}  f6 {[%clk 0:00:06]} 40. gxf6+ {[%clk 0:00:29]}  Kxf6 {[%clk 0:00:07]} 41. a4 {[%clk 0:00:30]}  g5 {[%clk 0:00:07]} 42. a5 {[%clk 0:00:30]}  Kf5 {[%clk 0:00:07]} 43. Bf7 {[%clk 0:00:28]}  Kf4 {[%clk 0:00:07]} 44. Be6 {[%clk 0:00:27]}  Rh6 {[%clk 0:00:06]} 45. Bc8 {[%clk 0:00:27]}  Rh7 {[%clk 0:00:06]} 46. Rg3 {[%clk 0:00:27]}  Ne5 {[%clk 0:00:04]} 47. Rg1 {[%clk 0:00:24]}  Rc7 {[%clk 0:00:04]} 48. Be6 {[%clk 0:00:23]}  c5 {[%clk 0:00:05]} 49. Bd5 {[%clk 0:00:23]}  c4 {[%clk 0:00:05]} 50. dxc4 {[%clk 0:00:20]}  Nxc4 {[%clk 0:00:06]} 51. Ra1 {[%clk 0:00:20]}  Ne5 {[%clk 0:00:06]} 52. Kd2 {[%clk 0:00:19]}  Rc5 {[%clk 0:00:06]} 53. Bg2 {[%clk 0:00:19]}  g4 {[%clk 0:00:07]} 54. Bxb7 {[%clk 0:00:19]}  Nc4+ {[%clk 0:00:06]} 55. Kd3 {[%clk 0:00:18]}  Nxa5 {[%clk 0:00:06]} 56. Ba8 {[%clk 0:00:16]}  Nc6 {[%clk 0:00:05]} 57. Bxc6 {[%clk 0:00:16]}  Rxc6 {[%clk 0:00:06]} 58. Ra4 {[%clk 0:00:15]}  Kf3 {[%clk 0:00:06]} 59. Rxd4 {[%clk 0:00:15]}  Rg6 {[%clk 0:00:04]} 60. c4 {[%clk 0:00:11]}  Kxf2 {[%clk 0:00:04]} 61. Rf4+ {[%clk 0:00:12]}  Kg3 {[%clk 0:00:04]} 62. Rf8 {[%clk 0:00:12]}  Kh2 {[%clk 0:00:04]} 63. c5 {[%clk 0:00:12]}  g3 {[%clk 0:00:05]} 64. Rh8+ {[%clk 0:00:12]}  Kg1 {[%clk 0:00:05]} 65. Kd4 {[%clk 0:00:12]}  g2 {[%clk 0:00:06]} 66. Kd5 {[%clk 0:00:12]}  Kf1 {[%clk 0:00:05]} 67. Rf8+ {[%clk 0:00:12]}  Ke2 {[%clk 0:00:06]} 68. Re8+ {[%clk 0:00:13]}  Kd2 {[%clk 0:00:06]} 69. Re6 {[%clk 0:00:05]}  Rxe6 {[%clk 0:00:06]} 70. Kxe6 {[%clk 0:00:05]}  g1=Q {[%clk 0:00:06]} 71. c6 {[%clk 0:00:06]}  Qc5 {[%clk 0:00:03]} 72. Kd7 {[%clk 0:00:06]}  Qd5+ {[%clk 0:00:03]} 73. Kc7 {[%clk 0:00:06]}  Kc3 {[%clk 0:00:03]} 74. Kb6 {[%clk 0:00:06]}  Qb3+ {[%clk 0:00:02]} 75. Ka7 {[%clk 0:00:06]}  Qa3+ {[%clk 0:00:02]} 76. Kb6 {[%clk 0:00:06]}  Qb4+ {[%clk 0:00:03]} 77. Ka6 {[%clk 0:00:07]}  Qc5 {[%clk 0:00:03]} 78. Kb7 {[%clk 0:00:07]}  Qb5+ {[%clk 0:00:03]} 79. Kc7 {[%clk 0:00:07]}  Kc4 {[%clk 0:00:04]} 80. Kd6 {[%clk 0:00:08]}  Qc5+ {[%clk 0:00:04]} 81. Kd7 {[%clk 0:00:08]}  Qd5+ {[%clk 0:00:04]} 82. Kc7 {[%clk 0:00:05]}  Kb5 {[%clk 0:00:05]} 0-1


[Site "https://www.chess.com"]

[Event "Titled Tuesday Blitz August 1 Late 2023"]
[White "Papp, Levente"]
[Black "Romero Pallares, Daniel"]
[WhiteFideId "751243"]
[BlackFideId "32025637"]
[WhiteElo "2685"]
[BlackElo "2484"]
[Result "0-1"]
[Round "2"]
[TimeControl "180+1"]
[Date "2023.08.01"]
[WhiteClock "0:00:23"]
[BlackClock "0:00:09"]
[Board "59"]

1. c3 {[%clk 0:03:00]}  g6 {[%clk 0:02:57]} 2. d4 {[%clk 0:03:00]}  Bg7 {[%clk 0:02:58]} 3. h4 {[%clk 0:03:00]}  h5 {[%clk 0:02:55]} 4. e4 {[%clk 0:02:54]}  d6 {[%clk 0:02:55]} 5. Bd3 {[%clk 0:02:50]}  Nc6 {[%clk 0:02:51]} 6. Ne2 {[%clk 0:02:42]}  Nf6 {[%clk 0:02:43]} 7. Bg5 {[%clk 0:02:42]}  e5 {[%clk 0:02:36]} 8. Nd2 {[%clk 0:02:38]}  O-O {[%clk 0:02:33]} 9. Nf3 {[%clk 0:02:33]}  Bg4 {[%clk 0:02:29]} 10. d5 {[%clk 0:02:21]}  Nb8 {[%clk 0:02:25]} 11. Qd2 {[%clk 0:02:19]}  c6 {[%clk 0:02:18]} 12. dxc6 {[%clk 0:02:00]}  bxc6 {[%clk 0:02:11]} 13. Rd1 {[%clk 0:02:00]}  Nbd7 {[%clk 0:02:06]} 14. Bb1 {[%clk 0:01:53]}  d5 {[%clk 0:02:05]} 15. exd5 {[%clk 0:01:36]}  cxd5 {[%clk 0:02:05]} 16. O-O {[%clk 0:01:35]}  Bxf3 {[%clk 0:01:48]} 17. gxf3 {[%clk 0:01:34]}  Qb6 {[%clk 0:01:49]} 18. f4 {[%clk 0:01:28]}  Qe6 {[%clk 0:01:48]} 19. f5 {[%clk 0:01:19]}  gxf5 {[%clk 0:01:43]} 20. Ng3 {[%clk 0:01:20]}  e4 {[%clk 0:01:28]} 21. Qf4 {[%clk 0:01:17]}  Ne5 {[%clk 0:01:15]} 22. Qxf5 {[%clk 0:01:09]}  Nf3+ {[%clk 0:01:13]} 23. Kg2 {[%clk 0:01:09]}  Rab8 {[%clk 0:00:59]} 24. b3 {[%clk 0:00:47]}  Rbc8 {[%clk 0:00:55]} 25. c4 {[%clk 0:00:45]}  dxc4 {[%clk 0:00:53]} 26. Bxe4 {[%clk 0:00:40]}  Nxg5 {[%clk 0:00:43]} 27. hxg5 {[%clk 0:00:37]}  Nxe4 {[%clk 0:00:42]} 28. Qxe6 {[%clk 0:00:33]}  fxe6 {[%clk 0:00:43]} 29. Nxe4 {[%clk 0:00:34]}  Rf4 {[%clk 0:00:30]} 30. Nd6 {[%clk 0:00:31]}  Rc5 {[%clk 0:00:28]} 31. Nxc4 {[%clk 0:00:21]}  Rxg5+ {[%clk 0:00:27]} 32. Kh3 {[%clk 0:00:22]}  Rf3+ {[%clk 0:00:12]} 33. Kh2 {[%clk 0:00:22]}  Rf4 {[%clk 0:00:12]} 34. Rd3 {[%clk 0:00:22]}  Kh7 {[%clk 0:00:06]} 35. Rg3 {[%clk 0:00:21]}  Rgf5 {[%clk 0:00:07]} 36. f3 {[%clk 0:00:20]}  e5 {[%clk 0:00:06]} 37. Nd6 {[%clk 0:00:18]}  Rf8 {[%clk 0:00:03]} 38. Kg2 {[%clk 0:00:14]}  Bh6 {[%clk 0:00:04]} 39. Ne4 {[%clk 0:00:14]}  h4 {[%clk 0:00:03]} 40. Rg4 {[%clk 0:00:14]}  Rxg4+ {[%clk 0:00:02]} 41. fxg4 {[%clk 0:00:15]}  h3+ {[%clk 0:00:03]} 42. Kg1 {[%clk 0:00:15]}  h2+ {[%clk 0:00:04]} 43. Kxh2 {[%clk 0:00:15]}  Rxf1 {[%clk 0:00:04]} 44. g5 {[%clk 0:00:15]}  Bg7 {[%clk 0:00:04]} 45. Kg2 {[%clk 0:00:15]}  Rf4 {[%clk 0:00:04]} 46. Nd6 {[%clk 0:00:14]}  Kg6 {[%clk 0:00:04]} 47. Nb5 {[%clk 0:00:14]}  a6 {[%clk 0:00:04]} 48. Nc7 {[%clk 0:00:14]}  a5 {[%clk 0:00:05]} 49. Ne6 {[%clk 0:00:15]}  Rf5 {[%clk 0:00:02]} 50. a4 {[%clk 0:00:14]}  Kf7 {[%clk 0:00:03]} 51. Nc7 {[%clk 0:00:14]}  Rxg5+ {[%clk 0:00:03]} 52. Kf3 {[%clk 0:00:15]}  Ke7 {[%clk 0:00:03]} 53. Ke4 {[%clk 0:00:16]}  Kd6 {[%clk 0:00:04]} 54. Nb5+ {[%clk 0:00:16]}  Ke6 {[%clk 0:00:04]} 55. b4 {[%clk 0:00:15]}  Rg4+ {[%clk 0:00:04]} 56. Kd3 {[%clk 0:00:15]}  Rxb4 {[%clk 0:00:05]} 57. Nc3 {[%clk 0:00:15]}  e4+ {[%clk 0:00:04]} 58. Nxe4 {[%clk 0:00:16]}  Rxe4 {[%clk 0:00:04]} 59. Kxe4 {[%clk 0:00:17]}  Kd6 {[%clk 0:00:05]} 60. Kd3 {[%clk 0:00:17]}  Kc5 {[%clk 0:00:05]} 61. Kc2 {[%clk 0:00:18]}  Kb4 {[%clk 0:00:06]} 62. Kb1 {[%clk 0:00:19]}  Kxa4 {[%clk 0:00:06]} 63. Ka2 {[%clk 0:00:20]}  Kb4 {[%clk 0:00:06]} 64. Kb1 {[%clk 0:00:21]}  Kb3 {[%clk 0:00:07]} 65. Kc1 {[%clk 0:00:21]}  a4 {[%clk 0:00:07]} 66. Kb1 {[%clk 0:00:22]}  a3 {[%clk 0:00:08]} 67. Kc1 {[%clk 0:00:23]}  a2 {[%clk 0:00:08]} 68. Kd2 {[%clk 0:00:23]}  a1=Q {[%clk 0:00:09]} 0-1


[Site "https://www.chess.com"]